bitfinex/quotes_ETHUSD_20230105
["timestamp","ask_amount","ask_price","bid_price","bid_amount"]
[1672880866075,67.5447287,1255.2,1255.1,0.08793452]
[1672880866835,75.9007287,1255.2,1255.1,0.08793452]
[1672880867190,75.9007287,1255.2,1255.1,0.00093452]
[1672880867716,87.8076287,1255.2,1255.1,0.00093452]
[1672880870576,79.4516287,1255.2,1255.1,0.00093452]
[1672880871222,77.5536287,1255.2,1255.1,0.00093452]
[1672880878697,72.5536287,1255.2,1255.1,0.00093452]
[1672880879699,77.5536287,1255.2,1255.1,0.00093452]
[1672880884499,19.0759787,1255.2,1255.1,0.00093452]
[1672880884742,5.06369383,1255.2,1255.1,2.03493452]
[1672880885272,5.06369383,1255.2,1255.1,0.00093452]
[1672880885522,13.03054383,1255.2,1255.1,0.00093452]
[1672880885799,17.03054383,1255.2,1255.1,0.00093452]
[1672880886704,20.03054383,1255.2,1255.1,0.00093452]
[1672880887611,16.03054383,1255.2,1255.1,0.00093452]
[1672880889187,8.06369383,1255.2,1255.1,0.00093452]
[1672880889642,16.03054383,1255.2,1255.1,0.00093452]
[1672880890364,0.0015694,1255.1,1255.0,0.0989709]
[1672880890578,5.0015694,1255.1,1255.0,0.0989709]
[1672880890743,5.06232101,1255.1,1255.0,8.0670909]
[1672880890953,5.06232101,1255.1,1255.0,18.69245961]
[1672880891391,5.06232101,1255.1,1255.0,2.75621961]
[1672880891603,5.06232101,1255.1,1255.0,2.69447576]
[1672880892674,5.06232101,1255.1,1255.0,0.0989709]
[1672880895418,0.06232101,1255.1,1255.0,0.0989709]
[1672880895657,0.0015694,1255.1,1255.0,0.0989709]
[1672880896061,5.0015694,1255.1,1255.0,0.0989709]
[1672880896277,5.06232101,1255.1,1255.0,0.0989709]
[1672880902058,0.06232101,1255.1,1255.0,0.0989709]
[1672880902262,0.0015694,1255.1,1255.0,0.0989709]
[1672880903851,5.0015694,1255.1,1255.0,0.0989709]
[1672880904075,5.06232101,1255.1,1255.0,0.0989709]
[1672880913921,0.06232101,1255.1,1255.0,0.0989709]
[1672880914132,5.0015694,1255.1,1255.0,0.0989709]
[1672880914384,5.06232101,1255.1,1255.0,0.0989709]
[1672880915013,5.06232101,1255.1,1255.0,0.09592119]
[1672880915235,9.06232101,1255.1,1255.0,0.09592119]
[1672880916924,17.02981101,1255.1,1255.0,0.09592119]
[1672880917090,20.62621311,1255.1,1255.0,0.09592119]
[1672880917305,37.04138985,1255.1,1255.0,0.09592119]
[1672880917724,47.80258985,1255.1,1255.0,0.09592119]
[1672880919942,51.79173936,1255.1,1255.0,0.09592119]
[1672880920151,52.02173936,1255.1,1255.0,0.09592119]
[1672880920845,44.05424936,1255.1,1255.0,0.09592119]
[1672880921117,36.08675936,1255.1,1255.0,0.09592119]
[1672880921326,52.02173936,1255.1,1255.0,0.09592119]
[1672880922721,44.05424936,1255.1,1255.0,0.09592119]
[1672880923539,52.02173936,1255.1,1255.0,0.09592119]
[1672880925622,52.02173936,1255.1,1254.8,0.11677808]
[1672880925623,0.095,1255.0,1254.8,0.11677808]
[1672880925853,0.095,1255.0,1254.7,0.13441034]
[1672880925854,11.12214951,1254.9,1254.7,0.13441034]
[1672880926064,31.89731951,1254.8,1254.7,0.13441034]
[1672880926358,43.63765786,1254.8,1254.7,0.13441034]
[1672880926892,48.63765786,1254.8,1254.7,0.13441034]
[1672880928154,40.66826786,1254.8,1254.7,0.13441034]
[1672880928413,36.66826786,1254.8,1254.7,0.13441034]
[1672880928575,27.11414614,1254.8,1254.7,0.13441034]
[1672880929467,26.6339494,1254.8,1254.7,0.13441034]
[1672880929867,34.6033394,1254.8,1254.7,0.13441034]
[1672880931409,42.5727294,1254.8,1254.7,0.13441034]
[1672880931620,43.05292614,1254.8,1254.7,0.13441034]
[1672880935824,19.14475614,1254.8,1254.7,0.13441034]
[1672880937193,15.15560663,1254.8,1254.7,0.13441034]
[1672880938208,14.67540989,1254.8,1254.7,0.13441034]
[1672880940723,22.64479989,1254.8,1254.7,0.13441034]
[1672880940877,30.61418989,1254.8,1254.7,0.13441034]
[1672880941664,22.64479989,1254.8,1254.7,0.13441034]
[1672880943087,17.64479989,1254.8,1254.7,0.13441034]
[1672880943868,18.12499663,1254.8,1254.7,0.13441034]
[1672880944247,23.12499663,1254.8,1254.7,0.13441034]
[1672880946520,27.12499663,1254.8,1254.7,0.13201848]
[1672880947079,27.12243122,1254.8,1254.7,0.13201848]
[1672880948091,47.05036073,1254.8,1254.7,0.13201848]
[1672880950231,48.95836073,1254.8,1254.7,0.13201848]
[1672880953077,49.55646073,1254.8,1254.7,0.13201848]
[1672880953665,48.95836073,1254.8,1254.7,0.13201848]
[1672880954259,50.86636073,1254.8,1254.7,0.13201848]
[1672880954474,51.46446073,1254.8,1254.7,0.13201848]
[1672880954699,56.23346073,1254.8,1254.7,0.13201848]
[1672880955446,73.18458562,1254.8,1254.6,0.12302804]
[1672880955672,30.75824951,1254.7,1254.6,0.12302804]
[1672880955812,61.5630508,1254.7,1254.6,0.12302804]
[1672880956182,62.04324754,1254.7,1254.6,0.12302804]
[1672880956633,0.12297196,1254.6,1254.5,0.12302804]
[1672880956762,0.12297196,1254.6,1254.4,0.19740227]
[1672880956763,8.356,1254.5,1254.4,0.19740227]
[1672880956991,47.30840322,1254.5,1254.3,0.91851486]
[1672880957205,15.98814951,1254.4,1254.3,0.91851486]
[1672880957393,0.29075161,1254.4,1254.3,0.91851486]
[1672880957601,12.02123112,1254.5,1254.3,0.91851486]
[1672880957855,5.0,1254.4,1254.3,0.91851486]
[1672880958044,5.06075161,1254.4,1254.3,0.91851486]
[1672880958219,13.03268161,1254.4,1254.3,0.91851486]
[1672880958691,5.06075161,1254.4,1254.3,0.91851486]
[1672880959267,5.06075161,1254.4,1254.3,24.83622486]
[1672880959475,5.06075161,1254.4,1254.3,28.20482581]
[1672880959691,5.06075161,1254.4,1254.3,20.23225581]
[1672880960179,5.06075161,1254.4,1254.3,28.20482581]
[1672880960741,5.06075161,1254.4,1254.3,12.25968581]
[1672880961596,5.06075161,1254.4,1254.3,0.98025871]
[1672880961897,5.06075161,1254.4,1254.3,0.91851486]
[1672880962317,13.03268161,1254.4,1254.3,0.91851486]
[1672880962541,34.85469112,1254.4,1254.3,0.91851486]
[1672880962770,35.08469112,1254.4,1254.3,0.91851486]
[1672880963106,42.83832291,1254.4,1254.3,0.91851486]
[1672880965730,40.94932291,1254.4,1254.3,0.91851486]
[1672880967793,43.45562291,1254.4,1254.3,0.91851486]
[1672880968942,27.51176291,1254.4,1254.3,0.91851486]
[1672880969320,27.51476291,1254.4,1254.3,0.91851486]
[1672880969621,19.54283291,1254.4,1254.3,0.91851486]
[1672880969774,27.51476291,1254.4,1254.3,0.91851486]
[1672880971257,35.48669291,1254.4,1254.3,0.91851486]
[1672880973726,0.918,1254.3,1254.1,0.21367928]
[1672880973946,13.04814951,1254.2,1254.1,0.21367928]
[1672880974085,45.48193786,1254.2,1254.1,0.21367928]
[1672880974290,32.38951786,1254.2,1254.1,0.21367928]
[1672880974506,12.27990112,1254.2,1254.1,0.21367928]
[1672880975468,8.29075161,1254.2,1254.1,0.21367928]
[1672880975680,8.29075161,1254.2,1254.1,16.06135928]
[1672880975681,5.06075161,1254.2,1254.1,16.06135928]
[1672880975891,5.06075161,1254.2,1254.1,16.12310313]
[1672880976339,5.06075161,1254.2,1254.1,8.14926313]
[1672880977294,5.06075161,1254.2,1254.1,0.17542313]
[1672880977502,13.03396161,1254.2,1254.1,0.11367928]
[1672880977817,5.06075161,1254.2,1254.1,0.11367928]
[1672880983093,7.95867077,1254.2,1254.1,0.11367928]
[1672880983439,15.93188077,1254.2,1254.1,0.11367928]
[1672880984116,45.60185028,1254.2,1254.1,0.11367928]
[1672880984335,46.08204702,1254.2,1254.1,0.11367928]
[1672880984700,38.10883702,1254.2,1254.1,0.11367928]
[1672880985284,46.08204702,1254.2,1254.1,0.11367928]
[1672880987304,32.20283702,1254.2,1254.1,0.11367928]
[1672880987631,40.17604702,1254.2,1254.1,0.11367928]
[1672880988291,32.20283702,1254.2,1254.1,0.11367928]
[1672880989199,40.17604702,1254.2,1254.1,0.11367928]
[1672880992219,41.16411449,1254.2,1254.1,0.11367928]
[1672880993030,40.56571449,1254.2,1254.1,0.11367928]
[1672880995208,48.46111348,1254.2,1254.1,0.11367928]
[1672880995573,50.37611348,1254.2,1254.1,0.11367928]
[1672880997080,50.97451348,1254.2,1254.1,0.11367928]
[1672880997294,6.91599072,1254.1,1254.0,10.27540054]
[1672880997482,29.71111622,1254.1,1254.0,10.27540054]
[1672880997693,56.32929942,1254.1,1254.0,10.27540054]
[1672880997885,56.32929942,1254.1,1254.0,5.87354054]
[1672880998311,67.60864885,1254.1,1254.0,5.87354054]
[1672880998577,66.60029942,1254.1,1254.0,5.87354054]
[1672880999943,6.85945946,1254.0,1253.9,0.22883097]
[1672881000097,47.72676026,1254.0,1253.9,0.22883097]
[1672881000305,60.04752447,1254.0,1253.9,0.22883097]
[1672881000513,51.69152447,1254.0,1253.9,0.22883097]
[1672881004560,33.82756447,1254.0,1253.9,0.22883097]
[1672881004728,30.694497,1254.0,1253.9,0.22883097]
[1672881004947,46.643457,1254.0,1253.9,0.22883097]
[1672881005136,33.301477,1254.0,1253.9,0.22883097]
[1672881005351,41.275957,1254.0,1253.9,0.22883097]
[1672881006662,44.505957,1254.0,1253.9,0.22883097]
[1672881008192,36.531477,1254.0,1253.9,0.22883097]
[1672881008563,44.505957,1254.0,1253.9,0.22883097]
[1672881009503,32.0628208,1254.0,1253.9,0.22883097]
[1672881009657,9.27990112,1254.0,1253.9,0.22883097]
[1672881010724,17.25438112,1254.0,1253.9,0.22883097]
[1672881011073,9.27990112,1254.0,1253.9,0.22883097]
[1672881011285,5.06075161,1254.0,1253.9,0.22883097]
[1672881011453,5.06075161,1254.0,1253.9,24.15416097]
[1672881011667,5.06075161,1254.0,1253.9,24.22016097]
[1672881012297,5.06075161,1254.0,1253.9,8.26994097]
[1672881012930,5.06075161,1254.0,1253.9,0.29483097]
[1672881013182,8.06075161,1254.0,1253.9,0.22883097]
[1672881013597,8.06075161,1254.0,1253.9,8.20394097]
[1672881013809,8.06075161,1254.0,1253.9,8.26994097]
[1672881015015,5.06075161,1254.0,1253.9,18.68846274]
[1672881015265,5.06075161,1254.0,1253.9,26.66357274]
[1672881017837,0.06075161,1254.0,1253.9,26.66357274]
[1672881017979,0.06075161,1254.3,1253.9,26.66357274]
[1672881018191,3.0,1254.3,1253.9,26.66357274]
[1672881019237,22.93433951,1254.3,1253.9,18.68846274]
[1672881019505,22.99509112,1254.3,1253.9,18.68846274]
[1672881020097,15.02247112,1254.3,1253.9,26.66357274]
[1672881020640,7.04990112,1254.3,1253.9,26.66357274]
[1672881020826,3.98914951,1254.2,1253.9,8.26980097]
[1672881021042,3.98914951,1254.1,1253.9,0.29483097]
[1672881021255,7.97448,1254.0,1253.9,0.22883097]
[1672881021437,8.03523161,1254.0,1253.9,0.22883097]
[1672881021653,0.06075161,1254.0,1253.9,0.22883097]
[1672881021910,7.97448,1254.0,1253.9,0.22883097]
[1672881022126,11.03523161,1254.0,1253.9,0.22883097]
[1672881022506,16.03523161,1254.0,1253.9,0.22883097]
[1672881023137,20.03523161,1254.0,1253.9,0.22504619]
[1672881023391,20.03251472,1254.0,1253.9,0.22504619]
[1672881025196,28.00699472,1254.0,1253.9,0.22504619]
[1672881025781,12.05803472,1254.0,1253.9,0.22504619]
[1672881025993,8.06075161,1254.0,1253.9,0.22504619]
[1672881026430,24.00971161,1254.0,1253.9,0.22504619]
[1672881026678,8.06075161,1254.0,1253.9,0.22504619]
[1672881027058,16.03523161,1254.0,1253.9,0.22504619]
[1672881031521,11.03523161,1254.0,1253.9,0.22504619]
[1672881031720,15.20479772,1254.0,1253.9,0.22504619]
[1672881032445,20.20479772,1254.0,1253.9,0.22504619]
[1672881037406,12.23031772,1254.0,1253.9,0.22504619]
[1672881037617,16.03523161,1254.0,1253.9,0.22504619]
[1672881039411,24.00971161,1254.0,1253.9,0.22504619]
[1672881039653,16.03523161,1254.0,1253.9,0.22504619]
[1672881041988,8.06075161,1254.0,1253.9,0.22504619]
[1672881042507,27.88182072,1254.0,1253.9,0.22504619]
[1672881042894,19.90734072,1254.0,1253.9,0.22504619]
[1672881043094,11.93286072,1254.0,1253.9,0.22504619]
[1672881044131,27.88182072,1254.0,1253.9,0.22504619]
[1672881046378,27.88182072,1254.0,1253.9,0.22214164]
[1672881046606,31.87097023,1254.0,1253.9,0.22214164]
[1672881046761,40.32564697,1254.0,1253.9,0.22214164]
[1672881046974,41.15414697,1254.0,1253.9,0.22214164]
[1672881047503,41.15414697,1254.0,1253.8,0.21365669]
[1672881047504,4.0,1253.9,1253.8,0.21365669]
[1672881047827,47.56439421,1253.9,1253.8,0.21365669]
[1672881048133,48.10534256,1253.9,1253.8,0.21365669]
[1672881053026,48.10534256,1253.9,1253.8,0.16365669]
[1672881056629,43.10534256,1253.9,1253.8,0.16365669]
[1672881057672,48.10534256,1253.9,1253.8,0.16365669]
[1672881060051,46.58034256,1253.9,1253.8,0.16365669]
[1672881060432,38.60523256,1253.9,1253.8,0.16365669]
[1672881062074,46.58034256,1253.9,1253.8,0.16365669]
[1672881062792,45.98184256,1253.9,1253.8,0.16365669]
[1672881063004,38.00673256,1253.9,1253.8,0.16365669]
[1672881064000,41.98184256,1253.9,1253.8,0.16365669]
[1672881064888,34.00673256,1253.9,1253.8,0.16365669]
[1672881065098,12.27990112,1253.9,1253.8,0.16365669]
[1672881065369,12.04990112,1253.9,1253.8,2.19765669]
[1672881065561,17.02501112,1253.9,1253.8,2.19765669]
[1672881066212,9.04990112,1253.9,1253.8,0.16365669]
[1672881066609,17.02501112,1253.9,1253.8,0.16365669]
[1672881067210,20.02501112,1253.9,1253.8,0.16365669]
[1672881071246,8.06075161,1253.9,1253.8,2.19765669]
[1672881073254,8.06075161,1253.9,1253.8,0.16365669]
[1672881076401,16.03586161,1253.9,1253.8,0.16365669]
[1672881076931,16.03586161,1253.9,1253.8,0.15979789]
[1672881079346,8.06075161,1253.9,1253.8,0.15979789]
[1672881079560,16.03586161,1253.9,1253.8,0.15979789]
[1672881080340,24.01097161,1253.9,1253.8,0.15979789]
[1672881082673,16.03586161,1253.9,1253.8,0.15979789]
[1672881085115,8.06075161,1253.9,1253.8,2.00579789]
[1672881085287,16.03586161,1253.9,1253.8,0.15979789]
[1672881085676,17.63944777,1253.9,1253.8,0.15979789]
[1672881085972,21.62859728,1253.9,1253.8,0.15979789]
[1672881087302,20.02216145,1253.9,1253.8,0.15979789]
[1672881087487,8.05990194,1253.9,1253.8,2.00579789]
[1672881087702,5.05990194,1253.9,1253.8,9.98154789]
[1672881087977,5.05990194,1253.9,1253.8,10.04754789]
[1672881088182,5.05990194,1253.9,1253.8,12.74155491]
[1672881089079,5.05990194,1253.9,1253.8,28.69305491]
[1672881091433,0.05990194,1253.9,1253.8,28.69305491]
[1672881091644,3.0,1254.2,1253.8,28.69305491]
[1672881091869,3.0,1254.2,1253.8,4.76580491]
[1672881091870,11.97415,1254.1,1253.8,4.76580491]
[1672881092016,8.03405194,1254.1,1253.8,4.69980491]
[1672881092438,16.00820194,1254.1,1253.8,4.69980491]
[1672881093226,8.03405194,1254.1,1253.8,4.69980491]
[1672881093376,8.03405194,1254.1,1253.8,12.68749783]
[1672881093581,8.03405194,1254.1,1253.8,12.75349783]
[1672881094318,8.03405194,1254.1,1253.8,4.77785783]
[1672881094696,8.03405194,1254.1,1253.8,4.71185783]
[1672881096894,16.00789194,1254.1,1253.8,4.71185783]
[1672881097061,8.03374194,1254.1,1253.8,12.68742783]
[1672881097284,8.03374194,1254.1,1253.8,12.75342783]
[1672881103088,18.01664194,1254.1,1253.8,12.75342783]
[1672881103627,10.04280194,1254.1,1253.8,20.72917783]
[1672881103817,10.04280194,1254.1,1253.8,28.70492783]
[1672881105377,10.04280194,1254.1,1253.8,20.72917783]
[1672881105695,10.04280194,1254.1,1253.8,28.70492783]
[1672881105888,10.04280194,1254.1,1253.8,20.72917783]
[1672881106768,10.04280194,1254.1,1253.8,28.70492783]
[1672881107771,10.04280194,1254.1,1253.8,28.70227529]
[1672881110234,10.04280194,1254.1,1253.8,12.75077529]
[1672881110448,25.99048194,1254.1,1253.8,4.77520529]
[1672881110785,18.01664194,1254.1,1253.8,12.68493529]
[1672881111000,18.01664194,1254.1,1253.8,12.75093529]
[1672881112467,18.01664194,1254.1,1253.8,4.77520529]
[1672881112638,18.01664194,1254.1,1253.8,4.70920529]
[1672881112849,18.01664194,1254.1,1253.8,12.68479529]
[1672881113061,18.01664194,1254.1,1253.8,12.75079529]
[1672881114143,25.99048194,1254.1,1253.8,2.08119827]
[1672881114361,18.01664194,1254.1,1253.8,9.99091827]
[1672881114665,18.01664194,1254.1,1253.8,10.05691827]
[1672881114884,10.04280194,1254.1,1253.8,18.03266827]
[1672881115053,10.04280194,1254.1,1253.8,21.99833333]
[1672881116344,18.01670194,1254.1,1253.8,14.02258333]
[1672881117407,10.04280194,1254.1,1253.8,29.97408333]
[1672881117716,10.04280194,1254.1,1253.8,21.99833333]
[1672881117878,12.20424913,1254.1,1253.8,18.03266827]
[1672881118840,12.20424913,1254.1,1253.8,26.00841827]
[1672881119045,10.04280194,1254.1,1253.8,26.00841827]
[1672881121491,10.04280194,1254.1,1253.8,26.00641827]
[1672881121655,10.04280194,1254.1,1253.8,26.00841827]
[1672881123564,10.04280194,1254.1,1253.8,18.03266827]
[1672881124699,10.04280194,1254.1,1253.8,26.00841827]
[1672881124965,10.04280194,1254.1,1253.8,29.97404733]
[1672881125762,10.04171254,1254.1,1253.8,29.97404733]
[1672881127713,10.04171254,1254.1,1253.8,21.99829733]
[1672881130228,10.04171254,1254.1,1253.8,20.15229733]
[1672881130423,39.87931254,1254.1,1253.8,0.22314535]
[1672881130612,35.87931254,1254.1,1253.8,0.15714535]
[1672881133033,5.0,1253.9,1253.8,0.15714535]
[1672881133238,5.05881254,1253.9,1253.8,0.15714535]
[1672881139042,0.05881254,1253.9,1253.8,0.15714535]
[1672881139257,8.03348254,1254.0,1253.8,2.00314535]
[1672881140120,5.0,1253.9,1253.8,0.15714535]
[1672881140338,5.05881254,1253.9,1253.8,0.15714535]
[1672881140656,13.03392254,1253.9,1253.8,0.15714535]
[1672881141491,21.00903254,1253.9,1253.8,0.15714535]
[1672881141708,13.03392254,1253.9,1253.8,0.15714535]
[1672881145986,8.03392254,1253.9,1253.8,0.15714535]
[1672881146259,8.03392254,1253.9,1253.8,0.15451735]
[1672881147303,5.05881254,1253.9,1253.8,0.15451735]
[1672881149634,5.05881254,1253.9,1253.8,2.00051735]
[1672881149839,0.05881254,1253.9,1253.8,11.07461831]
[1672881149998,23.40081254,1254.1,1253.8,27.09211831]
[1672881152181,23.40081254,1254.1,1253.8,19.11636831]
[1672881154294,23.40081254,1254.1,1253.8,27.09211831]
[1672881154838,22.80241254,1254.1,1253.8,27.09211831]
[1672881159298,22.80241254,1254.1,1253.8,19.11636831]
[1672881160684,22.80241254,1254.1,1253.8,27.09211831]
[1672881165073,22.80241254,1254.1,1253.8,19.11636831]
[1672881166608,22.80241254,1254.1,1253.8,27.09211831]
[1672881166958,22.80241254,1254.1,1253.8,19.11636831]
[1672881169647,22.80241254,1254.1,1253.8,27.09211831]
[1672881170110,22.80241254,1254.1,1253.9,4.0]
[1672881170271,22.80241254,1254.1,1254.0,7.97448]
[1672881170484,27.80241254,1254.1,1254.0,8.04048]
[1672881171133,15.04171254,1254.1,1254.0,16.0112627]
[1672881171338,5.05881254,1254.1,1254.0,16.0112627]
[1672881171640,5.05881254,1254.1,1254.0,27.9857427]
[1672881171871,5.05881254,1254.1,1254.0,32.29271815]
[1672881172369,0.05881254,1254.1,1254.0,32.29271815]
[1672881172579,38.30641254,1254.4,1254.0,28.29271815]
[1672881173451,46.27838254,1254.4,1254.0,28.29271815]
[1672881175104,35.30641254,1254.4,1254.0,28.29271815]
[1672881175329,35.30641254,1254.4,1254.0,32.28186766]
[1672881177047,43.27836254,1254.4,1254.0,32.28186766]
[1672881178289,32.52836254,1254.4,1254.0,32.28186766]
[1672881178503,24.55641254,1254.4,1254.0,32.28186766]
[1672881178841,32.52842254,1254.4,1254.0,32.28186766]
[1672881182882,37.3793957,1254.4,1254.0,20.31823815]
[1672881183100,29.4074657,1254.4,1254.0,23.9857427]
[1672881184080,37.3795057,1254.4,1254.0,23.9857427]
[1672881184260,47.2535457,1254.4,1254.0,16.0112627]
[1672881185094,47.2535457,1254.4,1254.0,8.0367827]
[1672881185352,55.2255857,1254.4,1254.0,8.0367827]
[1672881186793,47.2535457,1254.4,1254.0,16.0112627]
[1672881187463,47.2534357,1254.4,1254.0,16.0112627]
[1672881187690,47.2534357,1254.4,1254.0,8.0367827]
[1672881188523,39.2813957,1254.4,1254.0,16.0112627]
[1672881188740,39.2813957,1254.4,1254.0,23.9857427]
[1672881190001,31.3094657,1254.4,1254.0,23.9857427]
[1672881190175,39.2814057,1254.4,1254.0,23.9857427]
[1672881191511,39.2814057,1254.4,1254.0,23.98360322]
[1672881193525,47.26053316,1254.4,1254.0,16.00912322]
[1672881194361,45.35853316,1254.4,1254.0,16.00912322]
[1672881194614,37.38659316,1254.4,1254.0,16.00912322]
[1672881194774,37.38659316,1254.4,1254.0,23.98360322]
[1672881195230,37.38659316,1254.4,1254.0,27.64895454]
[1672881195231,29.41465316,1254.4,1254.0,27.64895454]
[1672881195440,24.5636,1254.4,1254.0,27.64895454]
[1672881195630,24.5636,1254.4,1254.0,27.64695454]
[1672881195846,23.9653,1254.4,1254.0,27.64895454]
[1672881197243,23.9653,1254.4,1254.0,31.63810405]
[1672881201035,11.0267,1254.4,1254.1,3.98914951]
[1672881201201,0.066,1254.4,1254.2,31.89284]
[1672881201417,0.03898905,1254.5,1254.2,31.95884]
[1672881201625,0.03898905,1254.5,1254.3,4.0]
[1672881201832,5.0,1254.4,1254.3,15.94424]
[1672881202042,5.066,1254.4,1254.3,18.408585]
[1672881203035,5.066,1254.4,1254.3,26.381155]
[1672881204033,0.066,1254.4,1254.3,26.381155]
[1672881204239,5.10498905,1254.5,1254.3,26.381155]
[1672881209245,0.10498905,1254.5,1254.3,26.381155]
[1672881209383,0.03898905,1254.5,1254.3,26.381155]
[1672881209858,0.04098905,1254.5,1254.3,30.36830451]
[1672881210074,0.04098905,1254.5,1254.3,30.37030451]
[1672881210075,0.03898905,1254.5,1254.3,30.37030451]
[1672881221068,0.04098905,1254.5,1254.3,30.36830451]
[1672881221267,0.03898905,1254.5,1254.3,30.37030451]
[1672881221484,0.03898905,1254.5,1254.4,4.0]
[1672881221696,0.03898905,1254.5,1254.4,31.35282045]
[1672881221956,0.03898905,1254.5,1254.4,31.41882045]
[1672881222269,0.03898905,1254.5,1254.4,35.40796996]
[1672881230637,0.03898905,1254.5,1254.4,35.95906996]
[1672881231078,0.03898905,1254.5,1254.4,35.40796996]
[1672881236061,0.03898905,1254.5,1254.4,31.40796996]
[1672881237691,0.03898905,1254.5,1254.4,23.43603996]
[1672881237907,0.03898905,1254.5,1254.4,19.99900951]
[1672881238153,0.03898905,1254.5,1254.4,27.97093951]
[1672881239732,0.03898905,1254.5,1254.4,27.96893951]
[1672881239733,0.04098905,1254.5,1254.4,27.96893951]
[1672881239950,0.03898905,1254.5,1254.4,27.97093951]
[1672881241925,0.03898905,1254.5,1254.4,1.912]
[1672881242140,0.03898905,1254.5,1254.4,1.846]
[1672881242720,0.03898905,1254.5,1254.4,9.81793]
[1672881242929,0.03898905,1254.5,1254.4,9.88393]
[1672881243407,0.03898905,1254.5,1254.4,14.345355]
[1672881243566,0.03898905,1254.5,1254.4,22.317285]
[1672881244287,0.03898905,1254.5,1254.4,8.03793]
[1672881245392,0.03898905,1254.5,1254.4,0.066]
[1672881245602,0.03898905,1254.5,1254.3,16.01022]
[1672881249610,0.03898905,1254.5,1254.3,8.03803]
[1672881250765,0.03898905,1254.5,1254.3,16.0106]
[1672881251717,0.03898905,1254.5,1254.3,26.686614]
[1672881265340,0.03898905,1254.5,1254.3,30.67576351]
[1672881286445,0.03898905,1254.5,1254.3,30.67572351]
[1672881295580,0.03898905,1254.5,1254.4,7.98914951]
[1672881295793,0.03898905,1254.5,1254.4,27.97093951]
[1672881296002,0.03898905,1254.5,1254.4,31.83557686]
[1672881299232,0.03898905,1254.5,1254.4,27.84642735]
[1672881299551,0.03898905,1254.5,1254.4,16.00986]
[1672881299772,0.03898905,1254.5,1254.4,8.03793]
[1672881300667,0.04098905,1254.5,1254.4,8.03593]
[1672881300984,0.03898905,1254.5,1254.4,8.03793]
[1672881304070,0.03898905,1254.5,1254.4,0.066]
[1672881304283,0.03898905,1254.5,1254.3,16.01017]
[1672881304430,0.03898905,1254.5,1254.3,19.99931951]
[1672881304855,0.03898905,1254.5,1254.3,12.02713951]
[1672881305394,0.03898905,1254.5,1254.3,8.03799]
[1672881306059,0.03898905,1254.5,1254.3,16.01056]
[1672881308618,0.03898905,1254.5,1254.3,18.714009]
[1672881310220,0.03898905,1254.5,1254.3,26.686579]
[1672881312846,0.03898905,1254.5,1254.3,30.67572851]
[1672881314971,10.00028856,1254.6,1254.3,30.67572851]
[1672881325096,10.00028856,1254.6,1254.3,0.066]
[1672881325097,18.97530737,1254.6,1254.3,0.066]
[1672881325311,26.94596737,1254.6,1254.2,16.56284]
[1672881325520,26.94596737,1254.6,1254.2,26.64796255]
[1672881325878,39.46436737,1254.6,1254.2,26.64796255]
[1672881326192,39.46436737,1254.6,1254.2,26.66001163]
[1672881326408,31.49370737,1254.6,1254.2,26.66001163]
[1672881329003,39.46436737,1254.6,1254.2,18.68705163]
[1672881329404,39.46436737,1254.6,1254.2,26.66026163]
[1672881331331,38.46000856,1254.6,1254.2,26.66026163]
[1672881331520,38.46000856,1254.6,1254.2,18.68705163]
[1672881331922,30.48934856,1254.6,1254.2,22.67111212]
[1672881332356,30.48934856,1254.6,1254.2,30.09312212]
[1672881332572,35.87611956,1254.6,1254.2,30.09312212]
[1672881332910,35.87611956,1254.6,1254.2,22.11991212]
[1672881333126,35.87611956,1254.6,1254.2,30.09312212]
[1672881334016,27.90545956,1254.6,1254.2,30.09312212]
[1672881334476,22.51868856,1254.6,1254.2,30.09312212]
[1672881339315,26.51868856,1254.6,1254.2,30.09011952]
[1672881339739,22.51868856,1254.6,1254.2,30.09011952]
[1672881343637,26.51868856,1254.6,1254.2,30.09011952]
[1672881343847,31.50839356,1254.6,1254.2,30.09011952]
[1672881344313,27.50839356,1254.6,1254.2,30.09011952]
[1672881350659,43.44987356,1254.6,1254.2,22.11690952]
[1672881351026,35.47913356,1254.6,1254.2,30.09011952]
[1672881353159,35.47913356,1254.6,1254.2,22.11690952]
[1672881353160,22.51868856,1254.6,1254.2,22.11690952]
[1672881353372,22.51868856,1254.6,1254.2,30.09011952]
[1672881355425,22.51868856,1254.6,1254.2,34.07926903]
[1672881357255,22.51868856,1254.6,1254.2,34.07726903]
[1672881357465,22.51868856,1254.6,1254.2,34.07926903]
[1672881360566,22.51868856,1254.6,1254.2,34.07600492]
[1672881367554,25.51433956,1254.6,1254.2,26.10279492]
[1672881367934,25.51433956,1254.6,1254.2,27.98003188]
[1672881367935,38.38445147,1254.6,1254.2,27.98003188]
[1672881368238,38.38445147,1254.6,1254.2,20.00682188]
[1672881368876,38.38445147,1254.6,1254.2,27.98003188]
[1672881369708,25.51433956,1254.6,1254.2,27.98003188]
[1672881369880,25.51433956,1254.6,1254.2,35.27287711]
[1672881372195,22.51868856,1254.6,1254.2,35.27287711]
[1672881374434,22.51868856,1254.6,1254.3,3.98914951]
[1672881374645,22.51868856,1254.6,1254.5,4.0]
[1672881374819,10.00028856,1254.6,1254.4,23.98179]
[1672881375030,10.00028856,1254.6,1254.4,29.26384995]
[1672881375907,0.06028856,1254.6,1254.4,33.25299946]
[1672881376119,12.48228807,1254.7,1254.4,33.25299946]
[1672881378058,12.48228807,1254.7,1254.4,33.26504662]
[1672881383378,0.10358807,1254.7,1254.4,33.26504662]
[1672881383590,0.04329951,1254.7,1254.4,33.26504662]
[1672881385069,0.04329951,1254.7,1254.4,33.26291687]
[1672881387323,0.04329951,1254.7,1254.5,7.98914951]
[1672881387576,0.04329951,1254.7,1254.6,7.97066]
[1672881387801,0.04329951,1254.7,1254.6,8.03666]
[1672881391839,0.04329951,1254.7,1254.6,23.97798]
[1672881393536,0.04329951,1254.7,1254.6,16.00732]
[1672881396619,0.04329951,1254.7,1254.6,0.066]
[1672881396843,0.04329951,1254.7,1254.5,20.00903571]
[1672881397036,0.04329951,1254.7,1254.5,27.97999571]
[1672881398117,0.04329951,1254.7,1254.5,31.03629528]
[1672881398996,0.04329951,1254.7,1254.5,23.06533528]
[1672881399206,0.04329951,1254.7,1254.5,27.98033571]
[1672881402398,0.04529951,1254.7,1254.5,27.97833571]
[1672881402627,0.04329951,1254.7,1254.5,27.98033571]
[1672881403861,5.04329951,1254.7,1254.5,27.98033571]
[1672881404075,5.10358807,1254.7,1254.5,27.98033571]
[1672881406354,0.10358807,1254.7,1254.5,27.98033571]
[1672881406564,0.04329951,1254.7,1254.5,27.98033571]
[1672881407568,5.04329951,1254.7,1254.5,27.97826716]
[1672881407790,5.10358807,1254.7,1254.5,27.97826716]
[1672881408267,5.10358807,1254.7,1254.5,31.83153588]
[1672881412657,5.10060618,1254.7,1254.5,31.83153588]
[1672881414909,0.10060618,1254.7,1254.5,31.83153588]
[1672881415123,0.04031762,1254.7,1254.5,31.83153588]
[1672881416017,5.04031762,1254.7,1254.5,31.83153588]